bitfinex/quotes_BTCUSD_20240906
["timestamp","ask_amount","ask_price","bid_price","bid_amount"]
[1725641303254,0.58339,54016.0,54015.0,0.206532]
[1725641303479,1.62963161,54016.0,54015.0,0.024632]
[1725641303703,1.65638596,54016.0,54015.0,0.001632]
[1725641303912,2.04064596,54016.0,54015.0,0.002632]
[1725641304127,1.67038596,54016.0,54015.0,0.002632]
[1725641304548,1.47967413,54016.0,54015.0,0.002632]
[1725641304776,1.42266435,54016.0,54015.0,0.001632]
[1725641305016,1.74238596,54016.0,54015.0,0.001632]
[1725641305460,2.11264596,54016.0,54015.0,0.001632]
[1725641306094,1.75538596,54016.0,54015.0,0.002632]
[1725641306523,1.74238596,54016.0,54015.0,0.001632]
[1725641306745,1.74238596,54016.0,54015.0,0.002632]
[1725641306746,2.12464596,54016.0,54015.0,0.002632]
[1725641307025,1.75438596,54016.0,54015.0,0.002632]
[1725641307234,2.12464596,54016.0,54015.0,0.002632]
[1725641307440,1.75438596,54016.0,54015.0,0.002632]
[1725641307868,2.12464596,54016.0,54015.0,0.002632]
[1725641308073,1.75438596,54016.0,54015.0,0.002632]
[1725641308513,2.39064596,54016.0,54015.0,0.002632]
[1725641308726,0.96440435,54016.0,54015.0,0.002632]
[1725641308944,0.012,54016.0,54015.0,0.591532]
[1725641309904,0.012,54016.0,54015.0,0.614532]
[1725641309905,0.19713,54016.0,54015.0,0.614532]
[1725641310143,0.55539,54016.0,54015.0,0.613532]
[1725641310372,0.19813,54016.0,54015.0,0.614532]
[1725641310845,0.55539,54016.0,54015.0,0.613532]
[1725641311087,0.19813,54016.0,54015.0,0.614532]
[1725641311343,0.92565,54016.0,54015.0,0.613532]
[1725641311561,0.55539,54016.0,54015.0,0.614532]
[1725641311780,0.19813,54016.0,54015.0,0.614532]
[1725641312694,1.30891,54016.0,54015.0,0.192232]
[1725641313135,1.80817511,54016.0,54015.0,0.002632]
[1725641313348,1.79517511,54016.0,54015.0,0.001632]
[1725641313609,1.76617,54016.0,54015.0,0.001632]
[1725641314329,1.76617,54016.0,54015.0,0.002632]
[1725641314330,1.80717269,54016.0,54015.0,0.002632]
[1725641314590,1.79517269,54016.0,54015.0,0.001632]
[1725641314857,1.79517269,54016.0,54015.0,0.002632]
[1725641314858,1.80717269,54016.0,54015.0,0.002632]
[1725641315092,2.55673269,54016.0,54015.0,0.001632]
[1725641315323,1.666323,54011.0,54010.0,0.1]
[1725641315568,2.74763861,54011.0,54010.0,0.1]
[1725641315789,1.296512,53991.0,53990.0,0.1957]
[1725641316001,0.555678,53988.0,53987.0,0.55594836]
[1725641316212,1.296582,53988.0,53987.0,0.00164]
[1725641316429,1.396582,53988.0,53987.0,0.00164]
[1725641316652,1.42559534,53988.0,53987.0,0.00164]
[1725641317507,1.43959534,53988.0,53987.0,0.00164]
[1725641317713,1.42559534,53988.0,53987.0,0.00164]
[1725641317924,1.43959534,53988.0,53987.0,0.00164]
[1725641318357,1.42559534,53988.0,53987.0,0.00164]
[1725641318564,1.43959534,53988.0,53987.0,0.00164]
[1725641318821,1.43959534,53988.0,53987.0,0.02464]
[1725641319714,1.38837945,53988.0,53987.0,0.02464]
[1725641320200,0.98891411,53988.0,53987.0,0.02464]
[1725641320413,0.60446211,53988.0,53987.0,0.02464]
[1725641320624,0.61846211,53988.0,53987.0,0.02464]
[1725641320834,0.98891411,53988.0,53987.0,0.02464]
[1725641321057,1.68846611,53988.0,53987.0,0.00164]
[1725641321275,1.95218512,53988.0,53987.0,0.00164]
[1725641321502,1.95218512,53988.0,53986.0,0.00164]
[1725641321503,0.557688,53987.0,53986.0,0.00164]
[1725641321720,0.002,53986.0,53979.0,0.00013]
[1725641321935,1.61649561,53980.0,53979.0,0.00013]
[1725641322144,2.08700261,53980.0,53979.0,0.00013]
[1725641322837,2.42560261,53980.0,53979.0,0.00013]
[1725641323054,2.42360261,53980.0,53979.0,0.00013]
[1725641323484,1.74300923,53980.0,53979.0,0.00013]
[1725641323921,1.42328762,53980.0,53979.0,0.00013]
[1725641324143,1.75700923,53980.0,53979.0,0.00013]
[1725641324357,1.74300923,53980.0,53979.0,0.00013]
[1725641324579,2.48181623,53980.0,53979.0,0.00013]
[1725641324788,2.86632323,53980.0,53979.0,0.00013]
[1725641325001,2.85232323,53980.0,53979.0,0.00013]
[1725641325216,2.84232323,53980.0,53979.0,0.00013]
[1725641325445,2.47181623,53980.0,53979.0,0.00013]
[1725641326312,2.49581623,53980.0,53979.0,0.00013]
[1725641326595,2.69461623,53980.0,53979.0,0.00013]
[1725641326811,3.06512323,53980.0,53979.0,0.00013]
[1725641327029,3.07912323,53980.0,53979.0,0.00013]
[1725641327246,3.07912323,53980.0,53979.0,1e-06]
[1725641327457,3.07712323,53980.0,53979.0,1e-06]
[1725641327681,1.66756,53971.0,53970.0,0.00164]
[1725641327892,2.08728161,53971.0,53970.0,0.00164]
[1725641329383,2.4755142,53971.0,53970.0,0.00164]
[1725641330257,2.8600832,53971.0,53970.0,0.00164]
[1725641330496,2.4895142,53971.0,53970.0,0.00164]
[1725641330706,2.4755142,53971.0,53970.0,0.00164]
[1725641330935,2.4895142,53971.0,53970.0,0.00164]
[1725641331154,2.4808049,53971.0,53970.0,0.00164]
[1725641331362,2.4908049,53971.0,53970.0,0.00164]
[1725641331570,2.8653739,53971.0,53970.0,0.00164]
[1725641331808,2.4948049,53971.0,53970.0,0.00164]
[1725641332033,2.46577231,53971.0,53970.0,0.00164]
[1725641332943,2.45177231,53971.0,53970.0,0.00164]
[1725641333151,2.46577231,53971.0,53970.0,0.00164]
[1725641333375,2.47577231,53971.0,53970.0,0.00164]
[1725641333558,2.84634131,53971.0,53970.0,0.00164]
[1725641333815,2.86034131,53971.0,53970.0,0.00164]
[1725641334028,2.86034131,53971.0,53966.0,0.00032239]
[1725641334029,1.98740361,53967.0,53966.0,0.00032239]
[1725641334261,2.45799961,53967.0,53966.0,0.00032239]
[1725641334905,2.08740361,53967.0,53966.0,0.00032239]
[1725641335120,1.960782,53967.0,53966.0,0.00032239]
[1725641335324,2.27050361,53967.0,53966.0,0.00032239]
[1725641335753,2.08740361,53967.0,53966.0,0.00032239]
[1725641336468,2.10140361,53967.0,53966.0,0.00032239]
[1725641336701,2.08740361,53967.0,53966.0,0.00032239]
[1725641336929,2.10140361,53967.0,53966.0,0.00032239]
[1725641337448,2.08740361,53967.0,53966.0,0.00032239]
[1725641337665,2.10140361,53967.0,53966.0,0.00032239]
[1725641337874,1.767682,53967.0,53966.0,0.00032239]
[1725641338120,2.08740361,53967.0,53966.0,0.00032239]
[1725641338545,2.12935737,53967.0,53966.0,0.00032239]
[1725641339532,2.14335737,53967.0,53966.0,0.00032239]
[1725641339776,2.15839086,53967.0,53966.0,0.00032239]
[1725641339990,2.14335737,53967.0,53966.0,0.00032239]
[1725641340463,2.12935737,53967.0,53966.0,0.00032239]
[1725641340704,1.82363576,53967.0,53966.0,0.00032239]
[1725641340967,1.80963576,53967.0,53966.0,0.00032239]
[1725641341204,2.12935737,53967.0,53966.0,0.00032239]
[1725641341466,2.14335737,53967.0,53966.0,0.00032239]
[1725641342021,1.82363576,53967.0,53966.0,0.00032239]
[1725641342249,1.08244376,53967.0,53966.0,0.35302239]
[1725641342472,1.08244376,53967.0,53966.0,0.56352239]
[1725641342473,0.185298,53967.0,53966.0,0.56352239]
[1725641342987,0.569894,53967.0,53966.0,0.56352239]
[1725641343252,0.9555212,53967.0,53966.0,0.56352239]
[1725641343497,0.185265,53977.0,53972.0,0.185279]
[1725641343736,0.000816,53980.0,53973.0,0.023]
[1725641343737,0.555822,53974.0,53973.0,0.023]
[1725641344020,0.555822,53974.0,53973.0,0.3646]
[1725641344245,0.185271,53975.0,53973.0,0.5447]
[1725641344511,0.000816,53980.0,53979.0,0.365357]
[1725641344748,0.371323,53980.0,53979.0,0.5447]
[1725641344993,1.29759,53980.0,53979.0,0.5447]
[1725641345245,1.29759,53980.0,53969.0,0.5423]
[1725641345246,0.000816,53980.0,53969.0,0.5423]
[1725641345478,0.92644,53970.0,53969.0,0.5423]
[1725641345667,0.92644,53970.0,53969.0,0.5653]
[1725641345668,1.297016,53970.0,53969.0,0.5653]
[1725641346183,1.297016,53970.0,53969.0,0.5648]
[1725641346184,0.555864,53970.0,53969.0,0.5648]
[1725641346695,0.555894,53967.0,53966.0,0.00032239]
[1725641346916,0.555894,53967.0,53962.0,0.0375]
[1725641346917,0.92656,53963.0,53962.0,0.0375]
[1725641347143,1.90890561,53963.0,53962.0,0.0375]
[1725641347362,1.90890561,53963.0,53948.0,0.1844]
[1725641347363,0.3544,53942.0,53920.0,0.01]
[1725641347579,0.3544,53942.0,53900.0,0.014186]
[1725641347580,0.01,53935.0,53900.0,0.014186]
[1725641347818,0.01,53935.0,53873.0,0.55430836]
[1725641347819,0.03,53885.0,53876.0,0.18579872]
[1725641348086,0.03,53885.0,53846.0,0.2440963]
[1725641348087,1.309375,53872.0,53851.0,0.0551211]
[1725641348299,2.00034661,53872.0,53847.0,0.01]
[1725641348525,2.00034661,53872.0,53871.0,0.02246358]
[1725641348526,2.55036774,53872.0,53871.0,0.02246358]
[1725641348775,2.55036774,53872.0,53833.0,0.00387382]
[1725641348776,0.3,53871.0,53833.0,0.00387382]
[1725641349010,0.3,53871.0,53841.0,0.55430836]
[1725641349011,0.371457,53842.0,53841.0,0.55430836]
[1725641349228,0.371457,53842.0,53817.0,0.005]
[1725641349229,0.18578,53827.0,53817.0,0.005]
[1725641349454,0.55734,53827.0,53819.0,0.01]
[1725641349676,1.30046,53827.0,53817.0,0.005]
[1725641349909,0.65734,53827.0,53826.0,0.665968]
[1725641350144,1.0389,53827.0,53826.0,0.665968]
[1725641350379,1.31046,53827.0,53826.0,0.76915227]
[1725641350617,1.31046,53827.0,53814.0,0.0223858]
[1725641350618,0.743286,53815.0,53814.0,0.0223858]
[1725641350869,0.743286,53815.0,53782.0,0.5]
[1725641350870,0.381899,53778.0,53777.0,6.92817373]
[1725641351096,1.301646,53778.0,53777.0,6.92817373]
[1725641351312,0.01,53787.0,53777.0,6.92817373]
[1725641351529,1.102348,53778.0,53777.0,6.83544373]
[1725641351774,0.929747,53778.0,53777.0,6.77735134]
[1725641352024,0.56430836,53821.0,53793.0,0.3297]
[1725641352282,0.55430836,53796.0,53793.0,0.5278]
[1725641352518,0.1,53817.0,53785.0,0.195923]
[1725641352519,0.18582,53816.0,53785.0,0.195923]
[1725641353619,0.02,53837.0,53803.0,0.02]
[1725641353621,0.02,53837.0,53787.0,0.5]
[1725641353622,0.01,53852.0,53810.0,0.01]
[1725641353627,0.01,53853.0,53818.0,0.01]
[1725641353630,0.371365,53856.0,53819.0,0.02]
[1725641353634,0.47374396,53863.0,53817.0,0.5237]
[1725641353635,0.02910578,53853.0,53827.0,0.01]
[1725641353876,0.02910578,53853.0,53836.0,0.3505]
[1725641354086,0.37132,53862.0,53837.0,0.2741244]
[1725641354291,0.05724481,53855.0,53836.0,0.3505]
[1725641354504,0.05724481,53855.0,53837.0,0.57730836]
[1725641354715,0.05724481,53855.0,53837.0,0.018]
[1725641355323,0.185659,53863.0,53837.0,0.018]
[1725641355568,0.371332,53861.0,53839.0,0.47374396]
[1725641355874,0.77220836,53871.0,53840.0,0.0842244]
[1725641355875,0.185646,53866.0,53840.0,0.0842244]
[1725641356107,0.2179,53871.0,53840.0,0.0842244]
[1725641356108,0.185663,53861.0,53840.0,0.0842244]
[1725641356365,0.371299,53865.0,53826.0,0.1993]
[1725641356366,0.371406,53850.0,53826.0,0.1993]
[1725641356587,0.49374396,53858.0,53849.0,0.55430836]
[1725641356874,0.49374396,53858.0,53834.0,0.55430836]
[1725641356875,0.01,53878.0,53845.0,0.3549]
[1725641357165,0.01,53879.0,53845.0,0.3549]
[1725641357166,0.371258,53871.0,53845.0,0.3549]
[1725641357434,0.04744465,53877.0,53848.0,0.55430836]
[1725641357667,0.04744465,53877.0,53845.0,0.3549]
[1725641357668,0.371245,53873.0,53845.0,0.3549]
[1725641357889,0.371334,53860.0,53849.0,0.55430836]
[1725641358118,0.371258,53871.0,53849.0,0.55430836]
[1725641358351,0.002,53881.0,53845.0,0.3549]
[1725641358352,0.05303645,53873.0,53845.0,0.3549]
[1725641358611,0.48374396,53876.0,53845.0,0.3549]
[1725641358612,0.05303645,53870.0,53849.0,0.55430836]
[1725641358849,0.18562,53874.0,53852.0,0.002]
[1725641359126,0.06303645,53879.0,53850.0,0.25003084]
[1725641359127,0.05303645,53879.0,53850.0,0.25003084]
[1725641359401,0.185629,53871.0,53851.0,0.023]
[1725641359617,0.05303645,53879.0,53851.0,0.023]
[1725641360071,0.05303645,53879.0,53851.0,0.025]
[1725641360336,0.47374396,53890.0,53851.0,0.025]
[1725641360337,0.47374396,53890.0,53852.0,0.08530523]
[1725641360584,0.47374396,53890.0,53853.0,0.023]
[1725641360840,0.18559,53883.0,53864.0,0.354]
[1725641361098,0.47374396,53883.0,53864.0,0.354]
[1725641361362,0.47374396,53883.0,53865.0,0.0584]
[1725641361862,0.37117,53884.0,53865.0,0.0584]
[1725641362124,0.371203,53879.0,53865.0,0.0584]
[1725641362339,0.185628,53872.0,53865.0,0.0584]
[1725641362568,0.1,53871.0,53865.0,0.0584]
[1725641362791,0.1,53871.0,53866.0,0.04124]
[1725641363025,0.185581,53885.0,53868.0,0.55430836]
[1725641363255,0.01,53897.0,53869.0,0.00371208]
[1725641363545,0.0289,53900.0,53870.0,0.04745521]
[1725641363546,0.0189,53900.0,53870.0,0.04745521]
[1725641363793,0.185569,53889.0,53870.0,0.04745521]
[1725641363995,0.0189,53900.0,53871.0,0.33701207]
[1725641364213,0.47374396,53897.0,53872.0,0.02671184]
[1725641364425,0.185568,53889.0,53873.0,0.0407467]
[1725641364634,0.371108,53893.0,53874.0,0.023]
[1725641364635,0.371109,53893.0,53874.0,0.023]
[1725641364885,0.0189,53900.0,53875.0,0.00371129]
[1725641365105,0.0189,53900.0,53876.0,0.023]
[1725641365326,0.0189,53900.0,53877.0,0.00371115]
[1725641365548,0.0189,53900.0,53879.0,0.3712]
[1725641365763,0.0189,53900.0,53883.0,0.3496]
[1725641365976,0.0189,53900.0,53884.0,0.023]
[1725641365977,0.371065,53899.0,53884.0,0.023]
[1725641366189,0.0189,53900.0,53884.0,0.023]
[1725641366630,0.001,53913.0,53885.0,0.1964]
[1725641366841,0.001,53913.0,53887.0,0.371146]
[1725641367059,0.185512,53905.0,53891.0,0.185557]
[1725641367271,0.370992,53910.0,53895.0,0.185545]
[1725641367484,0.185518,53903.0,53896.0,0.023]
[1725641367704,0.001,53913.0,53896.0,0.023]
[1725641367705,0.37101,53907.0,53896.0,0.023]
[1725641367951,0.05304522,53907.0,53896.0,0.023]
[1725641368174,0.370976,53912.0,53897.0,0.3392]
[1725641368392,0.02906317,53910.0,53899.0,0.1904]
[1725641368656,0.02906317,53910.0,53900.0,0.208526]
[1725641368860,0.02906317,53910.0,53900.0,0.023]
[1725641369063,0.02906317,53910.0,53901.0,0.00370992]
[1725641369267,0.370975,53912.0,53902.0,0.023]
[1725641369502,0.001,53913.0,53903.0,0.02734985]
[1725641369748,0.001,53913.0,53904.0,0.02670942]
[1725641369974,0.185495,53910.0,53904.0,0.023]
[1725641370208,0.001,53913.0,53904.0,0.023]
[1725641370628,0.001,53913.0,53905.0,0.00370993]
[1725641370850,0.370848,53931.0,53913.0,0.370962]
[1725641371080,0.52339752,53944.0,53919.0,0.370921]
[1725641371384,0.0201443,53967.0,53919.0,0.370921]
[1725641371385,0.52339752,53951.0,53926.0,0.01]
[1725641371600,0.000816,53967.0,53926.0,0.01]
[1725641371601,0.37069,53954.0,53936.0,0.5331]
[1725641371817,0.47374396,53964.0,53937.0,0.21145922]
[1725641371818,0.370648,53960.0,53937.0,0.21145922]
[1725641372084,0.000816,53967.0,53957.0,0.47374396]
[1725641372298,0.00013,53979.0,53967.0,0.47374396]
[1725641372525,0.00013,53979.0,53965.0,0.3392]
[1725641372526,0.01375375,53969.0,53965.0,0.3392]
[1725641372778,0.01375375,53969.0,53962.0,0.1845]
[1725641372779,0.370603,53966.0,53962.0,0.1845]
[1725641372980,0.185312,53963.0,53962.0,0.1845]
[1725641373186,0.03589981,53978.0,53962.0,0.1845]
[1725641373397,0.03589981,53978.0,53963.0,0.04145]
[1725641373622,0.00013,53979.0,53963.0,0.04145]
[1725641374282,0.000818,53966.0,53963.0,0.04145]
[1725641375133,0.000818,53966.0,53962.0,0.1845]
[1725641375568,0.000818,53966.0,53963.0,0.00370535]
[1725641375779,0.000818,53966.0,53962.0,0.1845]
[1725641375986,0.000818,53966.0,53965.0,0.3371]
[1725641376192,0.000818,53966.0,53965.0,0.522405]
[1725641376422,0.00013,53979.0,53965.0,0.522405]
[1725641376423,0.00013,53979.0,53966.0,0.01]
[1725641376675,0.00013,53979.0,53977.0,0.47374396]
[1725641376891,0.00013,53979.0,53971.0,0.5417]
[1725641376892,0.02902422,53983.0,53978.0,0.3525]
[1725641377091,0.555771,53979.0,53978.0,0.3755]
[1725641377322,0.002,54019.0,53978.0,0.3755]
[1725641377540,0.185195,53998.0,53979.0,0.04125451]
[1725641377813,0.47374396,54012.0,53979.0,0.04125451]
[1725641377814,0.370345,54004.0,53980.0,0.95716075]
[1725641378019,0.47374396,54012.0,53981.0,0.18895293]
[1725641378020,0.04649387,54005.0,53981.0,0.18895293]
[1725641378231,0.04649387,54005.0,53984.0,0.01]
[1725641378232,0.02901682,54002.0,53984.0,0.01]
[1725641378446,0.00082,54020.0,53984.0,0.01]
[1725641378447,0.04731387,54020.0,53995.0,1.01044396]
[1725641378667,0.04731387,54020.0,54008.0,0.47374396]
[1725641378668,0.00082,54020.0,54008.0,0.47374396]
[1725641378904,0.00082,54020.0,54014.0,0.47374396]
[1725641379221,0.00082,54020.0,54015.0,0.023]
[1725641379432,0.00082,54020.0,54015.0,0.21183497]
[1725641379655,0.00082,54020.0,54015.0,0.02670197]
[1725641379868,0.00082,54020.0,54015.0,0.07504459]
[1725641379869,0.185945,54016.0,54015.0,0.07504459]
[1725641380123,0.556205,54016.0,54015.0,0.023]
[1725641380322,0.556205,54016.0,53985.0,0.3814]
[1725641380323,0.370278,54014.0,53985.0,0.3814]
[1725641380551,0.185177,54003.0,53997.0,0.55430836]
[1725641380818,0.04730887,54016.0,53987.0,0.02]
[1725641380819,0.000815,54016.0,53987.0,0.02]
[1725641381017,0.000815,54016.0,53985.0,0.3814]
[1725641381018,0.185222,53989.0,53988.0,0.04014]
[1725641381221,0.47374396,54011.0,53985.0,0.3814]
[1725641381222,0.185233,53986.0,53985.0,0.3814]
[1725641381434,0.555699,53986.0,53985.0,0.3814]
[1725641382276,0.926165,53986.0,53985.0,0.3814]
[1725641382698,0.555699,53986.0,53985.0,0.3814]
[1725641382935,0.40787549,54017.0,53985.0,0.3814]
[1725641382936,0.185197,53997.0,53985.0,0.3814]
[1725641383158,0.370352,54003.0,53987.0,0.47374396]
[1725641383406,0.370352,54003.0,53986.0,0.06349372]
[1725641383407,0.000815,54016.0,53994.0,0.47374396]
[1725641383610,0.370315,54008.0,53995.0,0.57570285]
[1725641383814,0.000815,54016.0,53995.0,0.57770285]
[1725641384030,0.000815,54016.0,54003.0,0.185174]
[1725641384293,0.000815,54016.0,53999.0,0.02]
[1725641384294,0.185135,54015.0,54004.0,0.41630232]
[1725641384508,0.000815,54016.0,54010.0,0.185149]
[1725641384721,0.000815,54016.0,54013.0,0.3896]
[1725641384934,0.000815,54016.0,54015.0,0.185133]
[1725641385136,0.000815,54016.0,54015.0,0.53960819]
[1725641385361,0.000815,54016.0,54015.0,0.18902122]
[1725641385362,0.185945,54016.0,54015.0,0.18902122]
[1725641385570,0.000815,54016.0,54015.0,0.18902122]
[1725641385782,0.00082,54020.0,54019.0,0.01]
[1725641385985,0.00082,54020.0,54019.0,0.51044539]
[1725641386191,0.00082,54020.0,54019.0,0.65314586]
[1725641386602,0.00082,54020.0,54019.0,0.1694019]
[1725641386810,0.00082,54020.0,54019.0,0.68149635]
[1725641387290,0.00082,54020.0,54019.0,0.023]
[1725641387291,0.185936,54020.0,54019.0,0.023]
[1725641387494,0.185157,54008.0,54007.0,0.3588]
[1725641387719,0.185157,54008.0,53993.0,1.70416096]
[1725641387720,0.47374396,54018.0,53999.0,0.3588]
[1725641387922,0.185185,54000.0,53999.0,0.3588]
[1725641388163,0.185185,54000.0,53999.0,0.41457]
[1725641388386,0.02900848,54009.0,53999.0,0.41457]
[1725641388600,0.925925,54000.0,53999.0,0.3588]
[1725641388798,0.02900848,54009.0,53991.0,0.074239]
[1725641388799,0.185212,53992.0,53991.0,0.074239]
[1725641389220,0.02900848,54009.0,53991.0,0.074239]
[1725641389221,0.370408,53995.0,53991.0,0.074239]
[1725641389476,0.1,54009.0,53992.0,0.18475239]
[1725641389705,0.02901044,54011.0,54000.0,0.01]
[1725641389917,0.00082,54020.0,54001.0,0.05307711]
[1725641390132,0.370307,54010.0,54001.0,0.05307711]
[1725641390347,0.00082,54020.0,54001.0,0.00370271]
[1725641390591,0.00082,54020.0,54002.0,0.74995239]
[1725641390829,0.185157,54009.0,54003.0,0.023]
[1725641391044,0.370265,54016.0,54004.0,0.370342]
[1725641391256,0.00082,54020.0,54008.0,0.370312]
[1725641391477,0.00082,54020.0,54011.0,0.185146]
[1725641391478,0.371057,54020.0,54011.0,0.185146]
[1725641391698,0.371057,54020.0,54016.0,0.47374396]
[1725641391699,0.00082,54020.0,54016.0,0.47374396]
[1725641391920,0.00082,54020.0,54017.0,0.20700134]
[1725641392168,0.185123,54018.0,54017.0,0.2033]
[1725641392798,0.00082,54020.0,54018.0,0.3732]
[1725641393003,0.00082,54020.0,54019.0,1.25017853]
[1725641393445,0.00082,54020.0,54019.0,0.31124524]
[1725641393650,0.00082,54020.0,54019.0,0.87993913]
[1725641393871,0.00382,54020.0,54019.0,1.62241913]
[1725641394081,0.00082,54034.0,54024.0,0.927512]
[1725641394300,0.00082,54034.0,54024.0,0.85881059]
[1725641394789,0.185077,54032.0,54024.0,0.48860559]
[1725641394993,0.370959,54034.0,54024.0,0.1187512]
[1725641395208,0.00082,54034.0,54024.0,1.13696556]
[1725641395435,0.00082,54034.0,54032.0,0.02]
[1725641395673,0.00082,54034.0,54033.0,1.14176864]
[1725641395871,0.00013,54052.0,54038.0,0.47374396]
[1725641396088,0.00013,54052.0,54041.0,0.555133]
[1725641396313,0.185011,54051.0,54041.0,0.18494442]
[1725641396534,0.00013,54052.0,54041.0,0.023]
[1725641396535,0.185857,54042.0,54041.0,0.023]
[1725641396972,0.185068,54034.0,54033.0,0.5539]
[1725641397164,0.370898,54042.0,54026.0,0.3862]
[1725641397165,0.555277,54027.0,54026.0,0.3862]
[1725641397388,0.000816,54042.0,54026.0,0.3862]
[1725641397618,0.555277,54027.0,54026.0,0.3862]
[1725641397817,0.925462,54027.0,54026.0,0.44433]
[1725641398043,0.925462,54027.0,54026.0,0.05813]
[1725641398243,0.47374396,54035.0,54017.0,0.3593]
[1725641398483,0.370091,54041.0,54017.0,0.3593]
[1725641398484,0.185123,54018.0,54017.0,0.3593]
[1725641398673,0.847141,54034.0,54017.0,0.3593]
[1725641398792,0.1,54034.0,54033.0,0.001]
[1725641398994,0.925342,54034.0,54033.0,0.001]
[1725641399690,0.100816,54042.0,54033.0,0.001]
[1725641399905,0.000816,54042.0,54035.0,0.5854]
[1725641400124,0.000816,54042.0,54041.0,0.002]
[1725641400329,0.185048,54040.0,54039.0,0.023]
[1725641400537,0.000816,54042.0,54039.0,0.023]
[1725641400748,0.185075,54032.0,54024.0,0.55430836]
[1725641400952,0.370104,54039.0,54026.0,0.370187]
[1725641401164,0.000816,54042.0,54035.0,0.001]
[1725641401412,0.000816,54042.0,54041.0,0.370089]
[1725641401616,0.000816,54042.0,54041.0,1.21362935]
[1725641401822,0.000816,54042.0,54041.0,1.35962228]
[1725641402073,0.000816,54045.0,54041.0,1.83962228]
[1725641402309,0.00013,54052.0,54041.0,1.83962228]
[1725641402310,0.00013,54052.0,54051.0,1.14173]
[1725641402519,0.00082,54071.0,54061.0,0.3844]
[1725641402725,0.370707,54071.0,54051.0,0.1883]
[1725641402938,0.185003,54053.0,54052.0,0.01883]
[1725641403135,0.55501,54053.0,54052.0,0.01883]
[1725641403591,0.369923,54066.0,54052.0,0.01883]
[1725641403811,0.369923,54066.0,54053.0,0.00369956]
[1725641404054,0.00082,54071.0,54061.0,0.184976]
[1725641404261,0.185792,54062.0,54061.0,0.088872]
[1725641404473,0.185792,54062.0,54061.0,0.023]
[1725641404474,0.925682,54062.0,54061.0,0.023]
[1725641404698,0.925682,54062.0,54052.0,0.01883]
[1725641404699,0.185003,54053.0,54052.0,0.01883]
[1725641404916,0.185024,54047.0,54046.0,0.3612]
[1725641405130,0.003,54053.0,54042.0,0.1942]
[1725641405131,0.185037,54043.0,54042.0,0.1942]
[1725641405339,0.003,54053.0,54042.0,0.74850836]
[1725641405554,0.185012,54051.0,54043.0,0.37377474]
[1725641405759,0.003,54053.0,54045.0,0.02]
[1725641405978,0.003,54053.0,54042.0,0.66794396]
[1725641405979,0.003,54053.0,54046.0,0.08763961]
[1725641406201,0.003,54053.0,54047.0,0.18845217]
[1725641406409,0.00082,54062.0,54052.0,0.370014]
[1725641406626,0.00082,54062.0,54053.0,0.0036991]
[1725641406840,0.557737,54062.0,54061.0,0.001]
[1725641407074,1.297627,54062.0,54061.0,0.001]
[1725641407271,1.297627,54062.0,54054.0,0.023]
[1725641407272,0.924982,54055.0,54054.0,0.023]
[1725641407505,0.184996,54055.0,54054.0,0.023]
[1725641407718,0.00282,54062.0,54054.0,0.023]
[1725641407931,0.554952,54059.0,54054.0,0.023]
[1725641408159,0.00282,54062.0,54056.0,0.3669]
[1725641408160,0.00082,54062.0,54056.0,0.3669]
[1725641408363,0.00082,54062.0,54061.0,1.11978]
[1725641408570,0.00082,54062.0,54061.0,1.32753239]
[1725641408786,0.00082,54080.0,54063.0,0.5]
[1725641409017,0.00082,54080.0,54070.0,0.941735]
[1725641409225,0.00082,54080.0,54070.0,1.86826739]
[1725641409442,0.00082,54080.0,54070.0,0.55188307]
[1725641409738,0.00082,54080.0,54070.0,0.3669]
[1725641409951,0.00082,54080.0,54075.0,0.56430836]
[1725641410158,0.00082,54080.0,54079.0,0.924572]
[1725641410365,0.00082,54080.0,54079.0,1.29752439]
[1725641410786,0.00082,54080.0,54071.0,0.01]
[1725641411002,0.00082,54080.0,54062.0,0.35]
[1725641411003,0.00082,54080.0,54072.0,0.08051]
[1725641411206,0.00082,54080.0,54072.0,0.023]
[1725641411415,0.554805,54073.0,54072.0,0.023]
[1725641411626,0.924675,54073.0,54072.0,0.023]
[1725641411837,0.00082,54080.0,54072.0,0.023]
[1725641411838,0.184929,54075.0,54072.0,0.023]
[1725641412078,0.00082,54080.0,54072.0,0.55462339]
[1725641412305,0.00282,54080.0,54077.0,0.184919]
[1725641412579,0.00282,54080.0,54074.0,0.002]
[1725641412791,0.372648,54080.0,54074.0,0.023]
[1725641413022,0.00282,54080.0,54074.0,0.025]
[1725641413240,0.00282,54080.0,54073.0,0.48353674]
[1725641413467,0.00082,54080.0,54073.0,0.3785]
[1725641413676,0.00082,54080.0,54079.0,0.184914]
[1725641413886,0.00082,54080.0,54079.0,0.739843]
[1725641414114,0.00082,54080.0,54079.0,1.29642439]
[1725641414327,0.00082,54080.0,54079.0,2.07620339]
[1725641414546,0.00082,54095.0,54091.0,0.369742]
[1725641414786,0.00082,54095.0,54082.0,0.502]
[1725641414787,0.00081,54107.0,54094.0,0.84654396]
[1725641414993,0.00081,54107.0,54095.0,0.03715]
[1725641415252,0.00081,54107.0,54102.0,0.184834]
[1725641415465,0.185632,54107.0,54103.0,0.023]
[1725641415672,0.554476,54105.0,54104.0,0.0396042]
[1725641415877,0.924127,54105.0,54104.0,0.0626042]
[1725641416122,0.554476,54105.0,54104.0,0.0626042]
[1725641416740,1.293778,54105.0,54104.0,0.023]
[1725641416940,0.554476,54105.0,54104.0,0.023]
[1725641417388,0.00081,54107.0,54104.0,0.001]
[1725641417600,0.924127,54105.0,54104.0,0.001]
[1725641417814,1.663429,54105.0,54104.0,0.001]
[1725641418021,1.763429,54105.0,54104.0,0.001]